Cogmind - Beta 9.1 @@@ ROGUE MODE // 2019.10.31 @ 09:59:26 // Halloween2019/Abominations Player: ratty Result: Destroyed by Lesser Abomination with Beam Cannon Performance ------------- Evolutions (0) 0 Regions Visited (1) 200 Robots Destroyed (9) 45 Value Destroyed (364) 364 Prototype IDs (0) 0 Alien Tech Used (0) 0 Bonus (0) 0 TOTAL SCORE: 609 Bonus ------- None Cogmind --------- Core Integrity 0/250 Matter 238/300 Energy 100/100 System Corruption 0% Temperature Cool (9) Location -10/Materials Parts ------- Power (1) Propulsion (2) Wheel Utility (2) Small Storage Unit Small Storage Unit Weapon (2) Inventory (8) Ion Engine Hover Unit Visual Processing Unit Light Armor Plating Light Armor Plating Peak State ------------ Power Light Ion Engine Propulsion Aluminum Leg Aluminum Leg Utility Small Storage Unit Small Storage Unit Weapon Assault Rifle Assault Rifle Inventory Ion Engine Aluminum Leg Wheel Hover Unit Light Assault Rifle [Rating: 7] Favorites ----------- Power Light Ion Engine Engine Light Ion Engine Propulsion Aluminum Leg Leg Aluminum Leg Wheel Wheel Utility Small Storage Unit Storage Small Storage Unit Weapon Assault Rifle Ballistic Gun Assault Rifle Build | -11 -10 ------- Run | Scr Mat Slots Evolved . | . . Power . | . . Propulsion . | . . Utility . | . . Weapon . | . . Parts Attached 12 | 6 6 Power 1 | 1 . Engine 1 | 1 . Core . | . . Reactor . | . . Propulsion 4 | 2 2 Treads . | . . Leg 3 | 2 1 Wheel 1 | . 1 Hover . | . . Flight . | . . Utility 2 | 1 1 Device . | . . Storage 2 | 1 1 Processor . | . . Hackware . | . . Protection . | . . Artifact . | . . Weapon 5 | 2 3 Energy Gun . | . . Energy Cannon . | . . Ballistic Gun 5 | 2 3 Ballistic Cannon . | . . Launcher . | . . Special Weapon . | . . Impact Weapon . | . . Slashing Weapon . | . . Piercing Weapon . | . . Special Melee Weapon . | . . Unidentified Prototypes . | . . Parts Lost 8 | . 8 Power 1 | . 1 Propulsion 3 | . 3 Utility . | . . Weapon 4 | . 4 Highest Loss Streak 5 | . 5 Average Slot Usage (%) 88 | . 88 Engine 13 | . 13 Leg 26 | . 26 Storage 20 | . 20 Ballistic Gun 25 | . 25 Naked Turns . | . . Heaviest Build 15 | 11 15 Greatest Support 20 | 3 20 Greatest Overweight (x) 4 | 3 4 Average Overweight (x) 2 | 2 1 Largest Inventory Capacity 8 | 6 8 Average Capacity 6 | 5 6 Most Carried 8 | 2 8 Average Carried 3 | 1 4 Final Capacity 8 | 6 8 Final Carried 5 | 2 5 Class Distribution -------------------- 100% | Mutant Dominant Class ---------------- Mutant | -10/Materials Resources | -11 -10 ----------- Run | Scr Mat Matter Collected 433 | 207 226 Remotely . | . . Salvage Created 323 | . 323 Parts 22 | . 22 Haulers Intercepted . | . . Recyclers Shooed . | . . Parts Field Recycled . | . . Retrieved Matter . | . . Parts Self-Destructed . | . . Prevented . | . . Kills | -11 -10 ------- Run | Scr Mat Combat Hostiles Destroyed 8 | . 8 Guns 8 | . 8 Classes Destroyed 4 | . 4 Watcher 1 | . 1 Swarmer 2 | . 2 Grunt 2 | . 2 Abomination 4 | . 4 Best Kill Streak 3 | . 3 Combat Bots Only 3 | . 3 Max Kills in Single Turn 1 | . 1 Gunslinging . | . . Exploded . | . . Melee . | . . Uniques/NPCs Destroyed . | . . Combat | -11 -10 -------- Run | Scr Mat Damage Taken 1035 | . 1035 Core 261 | . 261 Absorbed by Shields . | . . Core Remaining (%) 100 | 100 . Volleys Fired 41 | . 41 Largest 2 | . 2 Hottest 40 | . 40 Shots Fired 75 | . 75 Gun 75 | . 75 Cannon . | . . Launcher . | . . Special . | . . Kinetic 75 | . 75 Thermal . | . . Explosive . | . . Electromagnetic . | . . Robot Hit Streak 8 | . 8 Robot Miss Streak 2 | . 2 Penetration Max . | . . Secondary Targets 2 | . 2 Max Gunslinging Chain 1 | . 1 Shots Hit Robots 56 | . 56 Core Hits 23 | . 23 Critical Hits . | . . Critical Kills . | . . Critical Parts Destroyed . | . . Melee Attacks . | . . Impact . | . . Slashing . | . . Piercing . | . . Sneak Attacks . | . . Combat Hostiles . | . . Follow-up Attacks . | . . Damage Inflicted 704 | . 704 Guns 701 | . 701 Cannons . | . . Explosions . | . . Melee . | . . Ramming 3 | . 3 Kinetic 701 | . 701 Thermal . | . . Explosive . | . . Electromagnetic . | . . Impact . | . . Slashing . | . . Piercing . | . . Highest Corruption . | . . Average Corruption . | . . Corruption Purged . | . . Overload Shots . | . . Overflow Damage . | . . Projectiles . | . . Explosions . | . . Melee . | . . Knockbacks . | . . Impact . | . . Kinetic . | . . Secondary . | . . Self-Inflicted Damage 1 | . 1 Shots . | . . Rammed 1 | . 1 Targets Rammed 1 | . 1 Kicked . | . . Crushed . | . . Highest Temperature 136 | . 136 Average Temperature 44 | . 44 Received Heat Transfer 165 | . 165 Siege Activations . | . . Robots Corrupted . | . . Combat Hostiles . | . . Parts Fried . | . . Impact Corruptions . | . . Robots Melted . | . . Combat Hostiles . | . . Parts Melted . | . . Heat Transferred . | . . Parts Sabotaged . | . . Parts Stolen . | . . Parts Stripped . | . . Power Chain Reactions . | . . Missiles Intercepted . | . . Alert | -11 -10 ------- Run | Scr Mat Peak Influence 112 | . 112 Average Influence 33 | . 63 Maximum Alert Level . | . . Low Security (%) 100 | . . Level 1 . | . . Level 2 . | . . Level 3 . | . . Level 4 . | . . Level 5 . | . . High Security . | . . Max Security . | . . Squads Dispatched 3 | . 3 Investigation 2 | . 2 Extermination . | . . Reinforcement 1 | . 1 Assault . | . . Garrison . | . . Intercept . | . . Construction Impeded . | . . Haulers Reinforced . | . . Stealth | -11 -10 --------- Run | Scr Mat Distress Signals 2 | . 2 Communications Jammed . | . . Distress Signals . | . . Times Spotted 12 | . 12 Peak Tracking Total 4 | . 4 Tactical Retreats . | . . Traps | -11 -10 ------- Run | Scr Mat Traps Triggered . | . . Indirectly . | . . Trap Hack Attempts . | . . Triggered . | . . Disarmed . | . . Reprogrammed . | . . Reused . | . . Traps Extracted . | . . Installed . | . . Triggered . | . . Machines | -11 -10 ---------- Run | Scr Mat Machines Disabled . | . . Max in Single Turn . | . . Machines Sabotaged . | . . Garrisons Compromised . | . . Overloaded Fab Kills . | . . Fab Network Shutdowns . | . . Hacking | -11 -10 --------- Run | Scr Mat Machines Accessed . | . . Terminals . | . . Fabricators . | . . Repair Stations . | . . Recycling Units . | . . Scanalyzers . | . . Garrison Access . | . . Total Hacks . | . . Successful . | . . Failed . | . . Catastrophic . | . . Database Lockouts . | . . Manual . | . . Terminals . | . . Fabricators . | . . Repair Stations . | . . Recycling Units . | . . Scanalyzers . | . . Garrison Access . | . . Terminal Hacks . | . . Fabricator Hacks . | . . Repair Station Hacks . | . . Recycling Unit Hacks . | . . Scanalyzer . | . . Garrison Access Hacks . | . . Unauthorized Hacks . | . . Terminals . | . . Fabricators . | . . Repair Stations . | . . Recycling Units . | . . Scanalyzers . | . . Garrison Access . | . . Data Cores Recovered . | . . Used . | . . Hacking Detections . | . . Full Trace Events . | . . Feedback Events . | . . Feedback Blocked . | . . Robot Schematics Acquired . | . . Robots Built . | . . Matter . | . . Time . | . . Total Robot Build Rating . | . . Part Schematics Acquired . | . . Parts Built . | . . Matter . | . . Time . | . . Total Part Build Rating . | . . Parts Repaired . | . . Time . | . . Parts Recycled . | . . Recycled Matter . | . . Retrieved Matter . | . . Retrieved Components . | . . Parts Scanalyzed . | . . Part Schematics Acquired . | . . Parts Damaged . | . . Bothacking | -11 -10 ------------ Run | Scr Mat Used RIF Installer . | . . Robots Hacked . | . . Non-combat . | . . Combat . | . . Robot Hacks Applied . | . . Relay Couplers Released . | . . Robots Rewired . | . . Allies Hacked . | . . Hacks Repelled . | . . Allies | -11 -10 -------- Run | Scr Mat Total Allies . | . . Largest Group . | . . Highest-Rated Group . | . . Highest-Rated Ally . | . . Total Orders . | . . Ally Attacks . | . . Total Damage . | . . Kills . | . . Allies Corrupted . | . . Allies Melted . | . . Intel | -11 -10 ------- Run | Scr Mat Robot Analysis Total . | . . Derelict Logs Recovered . | . . Drone Launches . | . . Drone Recoveries . | . . Exploration | -11 -10 ------------- Run | Scr Mat Turns Passed 483 | 230 253 Spaces Moved 195 | 120 75 Core 154 | 120 34 Treads . | . . Legs 41 | . 41 Wheels . | . . Hover . | . . Flight . | . . Fastest Speed 50 | 50 120 Average Speed 173 | 181 160 Slowest Speed 250 | 200 250 Overloaded Moves . | . . Propulsion Burnouts . | . . Robots Hopped . | . . Cave-ins Triggered . | . . Exploration Rate (%) 9 | 6 12 Regions Visited 1 Branch Regions . Pre-discovered Areas . | . . Known Exits Taken . | . . Unknown Exits Taken 1 | 1 . Scrap Searched . | . . Spaces Dug . | . . Terrain Destroyed . | . . Melee . | . . Projectile . | . . AOE . | . . Actions | -11 -10 --------- Run | Scr Mat Total 266 | 133 133 Wait . | . . Move 194 | 119 75 Hop . | . . Pick Up 17 | 8 9 Fast Attach . | . . Attach 11 | 6 5 Detach . | . . Swap 1 | . 1 Drop 1 | . 1 Fire 41 | . 41 Melee . | . . Ram . | . . Kick 1 | . 1 Crush . | . . Escape Stasis . | . . Rewire . | . . Trap . | . . Miscellaneous . | . . Route ------- -11/Scrapyard -10/Materials History --------- Turn | Location | Event 5 | -11/Scrapyard | Discovered new exit (range 14) 231 | -11/Scrapyard | Entered Materials 308 | -10/Materials | Build established: Mutant 461 | -10/Materials | Core integrity fell below 50% 482 | -10/Materials | Core integrity fell below 20% 484 | -10/Materials | Destroyed by Lesser Abomination with Beam Cannon Last Messages --------------- Slammed into K-01 Serf. Dropped Aluminum Leg. Acquired Aluminum Leg. Minor Abomination spits out Heat Sink. Minor Abomination absorbs Heat Sink. Minor Abomination destroyed. Switching to secondary target: Lesser Abomination. Lgt. Nuclear Core springs to life within a quantum being. Lesser Abomination spits out Aluminum Leg. Lesser Abomination absorbs Aluminum Leg. Minor Abomination absorbs Sml. Storage Unit. Minor Abomination absorbs Seismic Analyzer. Minor Abomination absorbs Signal Interpreter. Minor Abomination absorbs Aluminum Leg, Sml. Storage Unit, Heat Sink, Wheel. Minor Abomination absorbs Sml. Storage Unit, Wheel. Minor Abomination absorbs Wheel. Assault Rifle destroyed. Aluminum Leg destroyed. Lgt. Ion Engine destroyed. Map ----- +----------------------------------------------------+ | ???????????????????????????????????? | | ???????????????????????????????????? | | ???????????????????????????????????? | | ???????????????????????????????????? | | ???????????????????????????????????? | | ???????????????????????????????????? | | ???????????????????????????????????? | | ???????????????????????????????????? | | ???????????????????????????????????? | | ???????????????????????????????????? | | ???????????????????????????????????? | | ??????????????????????#####????????? | | ??????????????????????# ########## | | ??????????????????????# # # | | ??????????????????????# # """ # | | ??????????????????????# # """ # | | ??????????????????????# # % """ # | | ??????????????????????# +% # | | ??????????????????????# =# """ # | | ??????????????????????# # """ # | | ??????????????????????# # """ # | | ??????????????????????# # # | | ??????????????????????# A ########## | | ??????????????????????# #????????? | | ??????????????????????# #????????? | | ??????????????????????# @#????????? | | ???????#??????????????#A #????????? | | ??????? ????????????# #????????? | | ?????? #######+### #????????? | | ?????? #????????? | | ????? ^ ^ ^ #????????? | | ??????# ^ % #????????? | | ???????# ! % ##???????? | | ???????# % #???????? | | ???????# % ! #???????? | | ???????# +???????? | | ???????+ #???????? | | ???????######+######## % #???????? | | ?????????????????????###%###???????? | | ???????????????????????# #?????????? | | ???????????????????????# #?????????? | | ???????????????????????? #?????????? | | ???????????????????????? #?????????? | | ???????????????????????? #?????????? | | ????????????????????????+#?????????? | | ???????????????????????? ??????????? | | ????????????????????????!??????????? | | ???????????????????????? ??????????? | | ???????????????????????????????????? | | ???????????????????????????????????? | +----------------------------------------------------+ Best States ------------- Heat Dissipation 25 Energy Generation 10 Energy Capacity 125 Matter Stores 300 Matter Capacity 300 Sight Range 16 Terrain Scan Density 10 Evasion (%) 50 Item Schematics ----------------- None Robot Schematics ------------------ None Fabricated ------------ Nothing Alien Tech Used ----------------- None Achievements -------------- None Challenges ------------ None Game ------ Seed AssemblyPulseLeg Manual? 0 Play Time 00:09:52 Cumulative 1.9 hours Start 2019.10.31 @ 09:50:04 End 2019.10.31 @ 09:59:26 Sessions 1 Manual Loads 0 Difficulty Rogue Special Mode Halloween2019/Abominations Game No. 6 Rogue 6 Adventurer 0 Explorer 0 Win Type - Total 0 Types 0/0/0/0/0/0/0 Lore% 1 Gallery% 3 Achievement% 2 Wizard Run 0 Options --------- ASCII 0 Keyboard 0 Movement Mouse Keybinds 0 Fullscreen 1 Font 18/SmallcapsGlow Map View 76x50 Tactical HUD 0 Map Filters NONE Filters NONE Steam 1 RUN: a9eab09a-35ed-4d28-8a99-593ce827efef